[Event "*** Titled Tuesday Blitz"]
[Site "Chess.com"]
[Date "2018.09.04"]
[Round "2"]
[White "platy3"]
[Black "Thjop"]
[Result "1/2-1/2"]
[WhiteElo "2748"]
[BlackElo "2540"]
[TimeControl "180+2"]
[EndTime "13:58:34 PDT"]
[Termination "Game drawn by agreement"]

1. e4 {[%clk 0:02:59.1]} 1... e6 {[%clk 0:02:59.9]} 2. d4 {[%clk 0:02:58.5]}
2... d5 {[%clk 0:03:00.5]} 3. Nc3 {[%clk 0:02:59.5]} 3... Nf6 {[%clk 0:03:00.9]}
4. e5 {[%clk 0:03:00.8]} 4... Nfd7 {[%clk 0:03:01.7]} 5. f4 {[%clk 0:03:02.5]}
5... c5 {[%clk 0:03:01.2]} 6. Nf3 {[%clk 0:03:03.3]} 6... Be7 {[%clk 0:02:44.7]}
7. Be3 {[%clk 0:03:04.1]} 7... b6 {[%clk 0:02:43.8]} 8. Qd2 {[%clk 0:03:05]}
8... O-O {[%clk 0:02:44.1]} 9. h4 {[%clk 0:03:05.6]} 9... Ba6 {[%clk 0:02:35.9]}
10. Bxa6 {[%clk 0:03:05.3]} 10... Nxa6 {[%clk 0:02:36.1]} 11. h5 {[%clk
0:03:06.6]} 11... f5 {[%clk 0:02:13.1]} 12. exf6 {[%clk 0:02:55]} 12... Nxf6
{[%clk 0:02:12.3]} 13. Ne5 {[%clk 0:02:54.2]} 13... cxd4 {[%clk 0:02:05]} 14.
Bxd4 {[%clk 0:02:51.6]} 14... Bc5 {[%clk 0:02:01.7]} 15. O-O-O {[%clk
0:02:48.5]} 15... Rc8 {[%clk 0:01:52.1]} 16. g4 {[%clk 0:02:45.2]} 16... Bxd4
{[%clk 0:01:46.1]} 17. Qxd4 {[%clk 0:02:45.6]} 17... Nc5 {[%clk 0:01:45.5]} 18.
h6 {[%clk 0:02:39.9]} 18... Rc7 {[%clk 0:01:33]} 19. g5 {[%clk 0:02:31.6]} 19...
Nfe4 {[%clk 0:01:32]} 20. Nxe4 {[%clk 0:02:25.5]} 20... Nxe4 {[%clk 0:01:32.5]}
21. g6 {[%clk 0:02:26.6]} 21... Qf6 {[%clk 0:01:05.2]} 22. gxh7+ {[%clk
0:02:06.9]} 22... Kh8 {[%clk 0:01:04.5]} 23. Kb1 {[%clk 0:01:55.9]} 23... gxh6
{[%clk 0:00:56]} 24. Rxh6 {[%clk 0:01:43.5]} 24... Qxh6 {[%clk 0:00:39.1]} 25.
Nf7+ {[%clk 0:01:43]} 25... Kxh7 {[%clk 0:00:40.4]} 26. Nxh6 {[%clk 0:01:44.1]}
26... Kxh6 {[%clk 0:00:41.8]} 27. Rh1+ {[%clk 0:01:32.1]} 27... Kg6 {[%clk
0:00:42.5]} 28. Qg1+ {[%clk 0:01:32.9]} 28... Kf6 {[%clk 0:00:35.2]} 29. Rh6+
{[%clk 0:01:33.6]} 29... Ke7 {[%clk 0:00:36]} 30. Rh7+ {[%clk 0:01:33]} 30...
Rf7 {[%clk 0:00:35.6]} 31. Qg6 {[%clk 0:01:29.7]} 31... Rxh7 {[%clk 0:00:31.4]}
32. Qxh7+ {[%clk 0:01:29.7]} 32... Kd6 {[%clk 0:00:33.3]} 33. Qh6 {[%clk
0:01:25.8]} 33... Ng3 {[%clk 0:00:27.7]} 34. Qf8+ {[%clk 0:01:22.4]} 34... Kc6
{[%clk 0:00:23]} 35. Qe8+ {[%clk 0:01:22.8]} 35... Kd6 {[%clk 0:00:24]} 36. Qd8+
{[%clk 0:01:23.6]} 36... Rd7 {[%clk 0:00:25.2]} 37. Qb8+ {[%clk 0:01:20]} 37...
Ke7 {[%clk 0:00:25.6]} 38. Qe5 {[%clk 0:01:15.9]} 38... Nf5 {[%clk 0:00:26.4]}
39. b3 {[%clk 0:01:12.5]} 39... d4 {[%clk 0:00:27.5]} 40. Qe4 {[%clk 0:01:09]}
40... Rd5 {[%clk 0:00:27.8]} 41. Kb2 {[%clk 0:01:09.2]} 41... Kd6 {[%clk
0:00:28.7]} 42. a4 {[%clk 0:01:09.7]} 42... a5 {[%clk 0:00:28.5]} 43. Qe2 {[%clk
0:01:07.2]} 43... Ke7 {[%clk 0:00:27.5]} 44. Qa6 {[%clk 0:01:06.2]} 44... Rd6
{[%clk 0:00:28.8]} 45. Qb7+ {[%clk 0:01:07.3]} 45... Kf6 {[%clk 0:00:29.5]} 46.
Qc7 {[%clk 0:01:08.2]} 46... Kg6 {[%clk 0:00:29.2]} 47. Kc1 {[%clk 0:01:08]}
47... Kf6 {[%clk 0:00:30.5]} 48. Kd2 {[%clk 0:01:08.9]} 48... Kg6 {[%clk
0:00:31.1]} 49. Kd3 {[%clk 0:01:10.1]} 49... Kf6 {[%clk 0:00:32.2]} 50. Ke4
{[%clk 0:00:48.8]} 50... d3 {[%clk 0:00:23.4]} 51. cxd3 {[%clk 0:00:30.4]} 51...
Rd4+ {[%clk 0:00:23.9]} 52. Kf3 {[%clk 0:00:31.9]} 52... Rxd3+ {[%clk
0:00:25.2]} 53. Kf2 {[%clk 0:00:31.3]} 53... Rd6 {[%clk 0:00:18.6]} 54. Qh7
{[%clk 0:00:28.7]} 54... Rd4 {[%clk 0:00:18.1]} 55. Qh8+ {[%clk 0:00:28.8]}
55... Ke7 {[%clk 0:00:18.8]} 56. Qe5 {[%clk 0:00:29.5]} 56... Rd6 {[%clk
0:00:18.7]} 57. Kg2 {[%clk 0:00:26.7]} 57... Kd7 {[%clk 0:00:17.7]} 58. Qb5+
{[%clk 0:00:24.5]} 58... Ke7 {[%clk 0:00:18.7]} 59. Kh3 {[%clk 0:00:24.5]} 59...
Kf6 {[%clk 0:00:18.8]} 60. Kg4 {[%clk 0:00:24.1]} 60... Ne3+ {[%clk 0:00:16.6]}
61. Kf3 {[%clk 0:00:24.6]} 61... Nf5 {[%clk 0:00:17.8]} 62. Qe5+ {[%clk
0:00:24.4]} 62... Ke7 {[%clk 0:00:18]} 63. Kg4 {[%clk 0:00:25.9]} 63... Rd3
{[%clk 0:00:18.3]} 64. Qc7+ {[%clk 0:00:07.6]} 64... Kf6 {[%clk 0:00:19.3]} 65.
Qe5+ {[%clk 0:00:03.2]} 65... Kf7 {[%clk 0:00:16.7]} 66. Qc7+ {[%clk 0:00:04.4]}
66... Kf6 {[%clk 0:00:17.5]} 67. Qe5+ {[%clk 0:00:05.5]} 67... Kf7 {[%clk
0:00:18.8]} 68. Qc7+ {[%clk 0:00:05.7]} 1/2-1/2

[Event "*** Titled Tuesday Blitz"]
[Site "Chess.com"]
[Date "2018.09.04"]
[Round "2"]
[White "GhostOfGreenval"]
[Black "Pilopa"]
[Result "1-0"]
[WhiteElo "2460"]
[BlackElo "2310"]
[TimeControl "180+2"]
[EndTime "13:58:35 PDT"]
[Termination "GhostOfGreenval won on time"]

1. d4 {[%clk 0:03:01.9]} 1... Nf6 {[%clk 0:02:46.7]} 2. c4 {[%clk 0:03:02.4]}
2... c5 {[%clk 0:02:46.6]} 3. d5 {[%clk 0:03:03.4]} 3... b5 {[%clk 0:02:47.6]}
4. cxb5 {[%clk 0:03:04.4]} 4... a6 {[%clk 0:02:48.9]} 5. bxa6 {[%clk 0:03:05.8]}
5... g6 {[%clk 0:02:49.9]} 6. Nc3 {[%clk 0:03:07]} 6... Bg7 {[%clk 0:02:51]} 7.
g3 {[%clk 0:03:08.6]} 7... O-O {[%clk 0:02:51.1]} 8. Bg2 {[%clk 0:03:10.1]} 8...
d6 {[%clk 0:02:52]} 9. Nf3 {[%clk 0:03:11.7]} 9... Nbd7 {[%clk 0:02:53.1]} 10.
O-O {[%clk 0:03:12.2]} 10... Nb6 {[%clk 0:02:54]} 11. Nd2 {[%clk 0:03:07.2]}
11... Bxa6 {[%clk 0:02:49]} 12. Re1 {[%clk 0:03:08.2]} 12... Nfd7 {[%clk
0:02:41.7]} 13. Qc2 {[%clk 0:03:07.8]} 13... Ne5 {[%clk 0:02:40.9]} 14. b3
{[%clk 0:03:09]} 14... c4 {[%clk 0:02:26.9]} 15. b4 {[%clk 0:03:09.7]} 15... Ng4
{[%clk 0:02:23.9]} 16. h3 {[%clk 0:03:05.4]} 16... Nf6 {[%clk 0:02:11.3]} 17.
Bb2 {[%clk 0:03:05.4]} 17... Bb7 {[%clk 0:02:10.4]} 18. e4 {[%clk 0:02:50.6]}
18... Nfd7 {[%clk 0:02:09.2]} 19. a4 {[%clk 0:02:43.2]} 19... Ne5 {[%clk
0:02:08.4]} 20. a5 {[%clk 0:02:44.6]} 20... Nbd7 {[%clk 0:01:45]} 21. Bf1 {[%clk
0:02:44.5]} 21... Nd3 {[%clk 0:01:39.4]} 22. Bxd3 {[%clk 0:02:45.3]} 22... cxd3
{[%clk 0:01:40]} 23. Qxd3 {[%clk 0:02:47.2]} 23... Ne5 {[%clk 0:01:40.6]} 24.
Qe2 {[%clk 0:02:43.8]} 24... Ba6 {[%clk 0:01:27.5]} 25. b5 {[%clk 0:02:41.9]}
25... Bc8 {[%clk 0:01:28]} 26. f4 {[%clk 0:02:24.9]} 26... Nd7 {[%clk
0:01:21.5]} 27. Nc4 {[%clk 0:02:15.1]} 27... Nc5 {[%clk 0:01:22]} 28. Kh2 {[%clk
0:02:08.4]} 28... Nb3 {[%clk 0:01:14.4]} 29. Ra2 {[%clk 0:02:04]} 29... Nxa5
{[%clk 0:01:07.6]} 30. Rea1 {[%clk 0:02:04]} 30... Nxc4 {[%clk 0:01:08.1]} 31.
Rxa8 {[%clk 0:02:03.9]} 31... Nxb2 {[%clk 0:01:08.7]} 32. Qxb2 {[%clk
0:02:05.8]} 32... Qc7 {[%clk 0:01:02.4]} 33. Rc1 {[%clk 0:01:58.6]} 33... Qc4
{[%clk 0:00:56.1]} 34. b6 {[%clk 0:01:47.7]} 34... Bb7 {[%clk 0:00:51.6]} 35.
Rxf8+ {[%clk 0:01:48]} 35... Kxf8 {[%clk 0:00:52]} 36. Qe2 {[%clk 0:01:36.3]}
36... Qb4 {[%clk 0:00:45.3]} 37. Qb5 {[%clk 0:01:15.9]} 37... Qd4 {[%clk
0:00:21.4]} 38. Rc2 {[%clk 0:01:09.3]} 38... Qe3 {[%clk 0:00:09.2]} 39. Qe2
{[%clk 0:00:59.5]} 39... Qxb6 {[%clk 0:00:07.6]} 40. Rb2 {[%clk 0:00:56.4]}
40... Qa7 {[%clk 0:00:05]} 41. Ra2 {[%clk 0:00:56]} 41... Qb6 {[%clk 0:00:05]}
42. Na4 {[%clk 0:00:50]} 42... Qd4 {[%clk 0:00:03.8]} 43. h4 {[%clk 0:00:51]}
43... Bc8 {[%clk 0:00:03.2]} 44. Rc2 {[%clk 0:00:47]} 44... Bd7 {[%clk
0:00:03.5]} 45. Nc3 {[%clk 0:00:45.6]} 45... h5 {[%clk 0:00:03.9]} 46. Nb1
{[%clk 0:00:38]} 46... Bg4 {[%clk 0:00:03]} 47. Qc4 {[%clk 0:00:36.7]} 47... Qb6
{[%clk 0:00:02.3]} 48. Nc3 {[%clk 0:00:32.7]} 48... Kg8 {[%clk 0:00:03]} 49. Kg2
{[%clk 0:00:27.9]} 49... Qe3 {[%clk 0:00:03.6]} 50. Nb5 {[%clk 0:00:05.9]} 50...
Bf3+ {[%clk 0:00:04.5]} 51. Kh2 {[%clk 0:00:07.4]} 51... Bxe4 {[%clk 0:00:05.8]}
52. Re2 {[%clk 0:00:08.5]} 52... Bd3 {[%clk 0:00:06.7]} 53. Rxe3 {[%clk
0:00:09.7]} 53... Bxc4 {[%clk 0:00:07.8]} 54. Nc7 {[%clk 0:00:11.6]} 54... Bf6
{[%clk 0:00:07.5]} 55. Kg2 {[%clk 0:00:12.5]} 55... Kf8 {[%clk 0:00:06.8]} 56.
Re4 {[%clk 0:00:13.6]} 56... Bd3 {[%clk 0:00:06.6]} 57. Re3 {[%clk 0:00:14.2]}
57... Bf5 {[%clk 0:00:07.6]} 58. Rb3 {[%clk 0:00:14.5]} 58... Bd4 {[%clk
0:00:08.6]} 59. Rb8+ {[%clk 0:00:14.8]} 59... Kg7 {[%clk 0:00:09.6]} 60. Ne8+
{[%clk 0:00:16.3]} 60... Kh7 {[%clk 0:00:10.5]} 61. Kf3 {[%clk 0:00:17.7]} 1-0

[Event "*** Titled Tuesday Blitz"]
[Site "Chess.com"]
[Date "2018.09.04"]
[Round "2"]
[White "Lord_Neezy"]
[Black "Xeniya2005"]
[Result "1-0"]
[WhiteElo "2051"]
[BlackElo "1988"]
[TimeControl "180+2"]
[EndTime "13:58:55 PDT"]
[Termination "Lord_Neezy won by resignation"]

1. e4 {[%clk 0:03:01.9]} 1... c5 {[%clk 0:02:59.8]} 2. Nf3 {[%clk 0:03:01.7]}
2... Nc6 {[%clk 0:03:00.1]} 3. d4 {[%clk 0:03:02.9]} 3... cxd4 {[%clk
0:03:00.5]} 4. Nxd4 {[%clk 0:03:04.8]} 4... Nf6 {[%clk 0:03:00.2]} 5. Nc3 {[%clk
0:03:05.5]} 5... e6 {[%clk 0:03:01.1]} 6. Nxc6 {[%clk 0:03:03.1]} 6... bxc6
{[%clk 0:03:01.4]} 7. e5 {[%clk 0:03:00.3]} 7... Nd5 {[%clk 0:03:01.8]} 8. Ne4
{[%clk 0:03:00.5]} 8... f5 {[%clk 0:02:59]} 9. exf6 {[%clk 0:02:31.7]} 9... Nxf6
{[%clk 0:02:58.5]} 10. Nd6+ {[%clk 0:02:31.2]} 10... Bxd6 {[%clk 0:02:55.3]} 11.
Qxd6 {[%clk 0:02:33.1]} 11... Qe7 {[%clk 0:02:45.9]} 12. Bf4 {[%clk 0:02:30.6]}
12... Nd5 {[%clk 0:02:18.6]} 13. Qxe7+ {[%clk 0:02:22.9]} 13... Kxe7 {[%clk
0:02:18.4]} 14. Bg5+ {[%clk 0:02:24.3]} 14... Kf7 {[%clk 0:02:15.6]} 15. Bd2
{[%clk 0:02:06.3]} 15... Rb8 {[%clk 0:02:11.8]} 16. O-O-O {[%clk 0:01:56.3]}
16... Nf6 {[%clk 0:02:09.5]} 17. Bf4 {[%clk 0:01:53.2]} 17... Ra8 {[%clk
0:01:53.6]} 18. Bd6 {[%clk 0:01:45.2]} 18... Ne4 {[%clk 0:01:50.8]} 19. Bc4
{[%clk 0:01:42]} 19... Nxd6 {[%clk 0:01:50.7]} 20. Rxd6 {[%clk 0:01:43.9]} 20...
Ke7 {[%clk 0:01:51.1]} 21. Rhd1 {[%clk 0:01:42.5]} 21... Rf8 {[%clk 0:01:50.8]}
22. f3 {[%clk 0:01:38]} 22... Rb8 {[%clk 0:01:45.8]} 23. Bf1 {[%clk 0:01:27.1]}
23... h5 {[%clk 0:01:32.2]} 24. c4 {[%clk 0:01:20.5]} 24... Rf5 {[%clk
0:01:27.6]} 25. R6d4 {[%clk 0:00:57]} 25... a5 {[%clk 0:01:25.5]} 26. Bd3 {[%clk
0:00:56.5]} 26... Rg5 {[%clk 0:01:24.3]} 27. Rd2 {[%clk 0:00:54.7]} 27... e5
{[%clk 0:01:23]} 28. Re4 {[%clk 0:00:51.6]} 28... d6 {[%clk 0:01:19.6]} 29. f4
{[%clk 0:00:45.4]} 29... Rf5 {[%clk 0:01:07.6]} 30. g3 {[%clk 0:00:44.4]} 30...
Kf7 {[%clk 0:00:47.8]} 31. Re1 {[%clk 0:00:40.2]} 31... Rf6 {[%clk 0:00:41.1]}
32. fxe5 {[%clk 0:00:40.3]} 32... dxe5 {[%clk 0:00:41.6]} 33. Rxe5 {[%clk
0:00:42.2]} 33... a4 {[%clk 0:00:35.9]} 34. Rxh5 {[%clk 0:00:41.4]} 34... Bg4
{[%clk 0:00:34.2]} 35. Rg5 {[%clk 0:00:38.7]} 35... Bf3 {[%clk 0:00:28.9]} 36.
Be2 {[%clk 0:00:23.5]} 36... Bxe2 {[%clk 0:00:23.3]} 37. Rxe2 {[%clk 0:00:25.4]}
37... Rb4 {[%clk 0:00:21.4]} 38. Rc5 {[%clk 0:00:18.7]} 38... Kg6 {[%clk
0:00:20.6]} 39. Kc2 {[%clk 0:00:18.9]} 39... Rd6 {[%clk 0:00:19.3]} 40. Kc3
{[%clk 0:00:19]} 40... Rb7 {[%clk 0:00:19.4]} 41. b3 {[%clk 0:00:16.3]} 41...
axb3 {[%clk 0:00:19]} 42. axb3 {[%clk 0:00:18.2]} 42... Rbd7 {[%clk 0:00:19.1]}
43. Re3 {[%clk 0:00:18.8]} 43... Kf7 {[%clk 0:00:18.7]} 44. h4 {[%clk
0:00:18.6]} 44... g6 {[%clk 0:00:18.8]} 45. Rf3+ {[%clk 0:00:20]} 45... Kg7
{[%clk 0:00:19.1]} 46. Re3 {[%clk 0:00:21.2]} 46... Rf6 {[%clk 0:00:18.1]} 47.
Kb4 {[%clk 0:00:18.4]} 47... Rb7+ {[%clk 0:00:18.4]} 48. Ka5 {[%clk 0:00:19.6]}
48... Rf8 {[%clk 0:00:18.2]} 49. Rxc6 {[%clk 0:00:15.3]} 49... Ra8+ {[%clk
0:00:16.6]} 50. Ra6 {[%clk 0:00:16.3]} 50... Rab8 {[%clk 0:00:16.9]} 51. Ka4
{[%clk 0:00:14.5]} 51... Rb4+ {[%clk 0:00:16.7]} 52. Ka3 {[%clk 0:00:16]} 52...
R4b7 {[%clk 0:00:16.8]} 53. Ra4 {[%clk 0:00:15.3]} 53... Rd8 {[%clk 0:00:16]}
54. b4 {[%clk 0:00:13]} 54... Rc8 {[%clk 0:00:15.3]} 55. b5 {[%clk 0:00:13.9]}
55... Rbc7 {[%clk 0:00:15.8]} 56. Rc3 {[%clk 0:00:13.8]} 56... Kf6 {[%clk
0:00:15.7]} 57. b6 {[%clk 0:00:14.3]} 57... Rc6 {[%clk 0:00:16.1]} 58. Rb4
{[%clk 0:00:14.9]} 58... Rb8 {[%clk 0:00:16.8]} 59. c5 {[%clk 0:00:14.6]} 59...
Ke5 {[%clk 0:00:17.5]} 60. Ka4 {[%clk 0:00:15]} 60... Kd5 {[%clk 0:00:18.2]} 61.
Kb5 {[%clk 0:00:16.1]} 61... Rbxb6+ {[%clk 0:00:16]} 62. cxb6 {[%clk 0:00:14.2]}
62... Rxc3 {[%clk 0:00:16.4]} 63. Rg4 {[%clk 0:00:14.2]} 63... Rb3+ {[%clk
0:00:16.5]} 64. Ka6 {[%clk 0:00:15.2]} 64... Kc5 {[%clk 0:00:17.3]} 65. Rg5+
{[%clk 0:00:16.3]} 65... Kc4 {[%clk 0:00:16]} 66. Rxg6 {[%clk 0:00:17.4]} 66...
Kc5 {[%clk 0:00:16.6]} 67. Kb7 {[%clk 0:00:16.6]} 67... Rf3 {[%clk 0:00:15.8]}
68. h5 {[%clk 0:00:17.7]} 68... Rf7+ {[%clk 0:00:16.1]} 69. Ka6 {[%clk
0:00:18.1]} 69... Rf8 {[%clk 0:00:16.4]} 70. b7 {[%clk 0:00:18.2]} 70... Rh8
{[%clk 0:00:14.2]} 71. Ka7 {[%clk 0:00:18.8]} 71... Rh7 {[%clk 0:00:14.9]} 72.
h6 {[%clk 0:00:18.8]} 72... Kb5 {[%clk 0:00:14.5]} 73. g4 {[%clk 0:00:18.9]}
73... Kc5 {[%clk 0:00:13.8]} 74. g5 {[%clk 0:00:20.1]} 74... Kb5 {[%clk
0:00:14.7]} 75. Rg7 {[%clk 0:00:20.8]} 1-0

[Event "*** Titled Tuesday Blitz"]
[Site "Chess.com"]
[Date "2018.09.04"]
[Round "2"]
[White "SmoothAsAHedgehog"]
[Black "volcanoexplorer"]
[Result "1-0"]
[WhiteElo "2590"]
[BlackElo "2327"]
[TimeControl "180+2"]
[EndTime "13:59:20 PDT"]
[Termination "SmoothAsAHedgehog won by resignation"]

1. c4 {[%clk 0:03:01.8]} 1... Nf6 {[%clk 0:03:00.2]} 2. g3 {[%clk 0:03:00.6]}
2... e5 {[%clk 0:03:00.8]} 3. Bg2 {[%clk 0:03:01.8]} 3... Nc6 {[%clk 0:02:59.4]}
4. Nc3 {[%clk 0:03:02.4]} 4... g6 {[%clk 0:03:00]} 5. d3 {[%clk 0:03:02.6]} 5...
Bg7 {[%clk 0:03:01]} 6. Nf3 {[%clk 0:03:04.1]} 6... d6 {[%clk 0:03:01.8]} 7. O-O
{[%clk 0:03:05.5]} 7... O-O {[%clk 0:03:02.7]} 8. Rb1 {[%clk 0:03:06.1]} 8... a5
{[%clk 0:03:03.4]} 9. a3 {[%clk 0:03:07.3]} 9... Be6 {[%clk 0:03:01.1]} 10. b4
{[%clk 0:03:02.2]} 10... axb4 {[%clk 0:03:01.7]} 11. axb4 {[%clk 0:03:03.5]}
11... Ne7 {[%clk 0:03:01.1]} 12. Ng5 {[%clk 0:03:01.6]} 12... Bc8 {[%clk
0:02:56.9]} 13. Bb2 {[%clk 0:03:01.7]} 13... h6 {[%clk 0:02:57.5]} 14. Nf3
{[%clk 0:03:01.2]} 14... Be6 {[%clk 0:02:56.6]} 15. b5 {[%clk 0:03:00.2]} 15...
Nd7 {[%clk 0:02:46.9]} 16. Nd2 {[%clk 0:02:50.9]} 16... c6 {[%clk 0:02:39.5]}
17. Ra1 {[%clk 0:02:47.2]} 17... f5 {[%clk 0:02:37.1]} 18. Rxa8 {[%clk
0:02:46.1]} 18... Qxa8 {[%clk 0:02:39]} 19. Qa1 {[%clk 0:02:47.2]} 19... Nc5
{[%clk 0:02:24]} 20. Qb1 {[%clk 0:02:28.5]} 20... Qa5 {[%clk 0:02:06.8]} 21. Qc2
{[%clk 0:02:28.8]} 21... Qc7 {[%clk 0:02:02]} 22. Ra1 {[%clk 0:02:26.6]} 22...
f4 {[%clk 0:01:32.3]} 23. Nde4 {[%clk 0:02:25.1]} 23... Nxe4 {[%clk 0:01:30.7]}
24. Bxe4 {[%clk 0:02:26.9]} 24... fxg3 {[%clk 0:01:29.9]} 25. hxg3 {[%clk
0:02:26.8]} 25... d5 {[%clk 0:01:23.4]} 26. Bg2 {[%clk 0:02:21.1]} 26... dxc4
{[%clk 0:01:15.2]} 27. bxc6 {[%clk 0:02:22.2]} 27... bxc6 {[%clk 0:01:13.4]} 28.
dxc4 {[%clk 0:02:21.1]} 28... Bxc4 {[%clk 0:01:12]} 29. Ba3 {[%clk 0:02:21.4]}
29... Rf7 {[%clk 0:01:08.6]} 30. Rc1 {[%clk 0:02:19.5]} 30... Qa7 {[%clk
0:01:07.2]} 31. Bxe7 {[%clk 0:02:00.1]} 31... Qxf2+ {[%clk 0:01:06.7]} 32. Kh2
{[%clk 0:02:00.7]} 32... Rxe7 {[%clk 0:01:02.4]} 33. Ne4 {[%clk 0:02:01.6]}
33... Qxe2 {[%clk 0:00:46.7]} 34. Qxc4+ {[%clk 0:02:02.1]} 34... Qxc4 {[%clk
0:00:48.2]} 35. Rxc4 {[%clk 0:02:04]} 35... Rc7 {[%clk 0:00:43.4]} 36. Nf2
{[%clk 0:02:03.3]} 36... Rd7 {[%clk 0:00:40.2]} 37. Bxc6 {[%clk 0:01:56.3]}
37... Rd2 {[%clk 0:00:40.4]} 38. Kg1 {[%clk 0:01:57.6]} 38... Rd4 {[%clk
0:00:37.7]} 39. Rc2 {[%clk 0:01:46.7]} 39... h5 {[%clk 0:00:38.1]} 40. Ne4
{[%clk 0:01:45.3]} 40... Bh6 {[%clk 0:00:36.1]} 41. Kg2 {[%clk 0:01:45.2]} 41...
Kf7 {[%clk 0:00:35]} 42. Re2 {[%clk 0:01:42.2]} 42... Ke7 {[%clk 0:00:32.9]} 43.
Bb5 {[%clk 0:01:24.5]} 43... Ke6 {[%clk 0:00:29.8]} 44. Ba6 {[%clk 0:01:23.1]}
44... Ke7 {[%clk 0:00:30.3]} 45. Nf2 {[%clk 0:01:18.4]} 45... Kd6 {[%clk
0:00:26.9]} 46. Bb7 {[%clk 0:01:18]} 46... Bg7 {[%clk 0:00:22.4]} 47. Bf3 {[%clk
0:01:18.3]} 47... Ke6 {[%clk 0:00:19.9]} 48. Ne4 {[%clk 0:01:17.8]} 48... Bh6
{[%clk 0:00:20.5]} 49. Nf2 {[%clk 0:01:17.5]} 49... Rd2 {[%clk 0:00:20.6]} 50.
Re1 {[%clk 0:01:10.2]} 50... Bf8 {[%clk 0:00:20]} 51. Kf1 {[%clk 0:01:06.8]}
51... Rb2 {[%clk 0:00:17.6]} 52. Nd3 {[%clk 0:00:57.4]} 52... Rb5 {[%clk
0:00:18.3]} 53. Be4 {[%clk 0:00:55]} 53... Kf6 {[%clk 0:00:19.2]} 54. Kg2 {[%clk
0:00:55.7]} 54... Bd6 {[%clk 0:00:19.7]} 55. Rf1+ {[%clk 0:00:54.6]} 55... Kg7
{[%clk 0:00:21]} 56. Rc1 {[%clk 0:00:53.6]} 56... Rb8 {[%clk 0:00:20.3]} 57. Rc6
{[%clk 0:00:54.1]} 57... Rd8 {[%clk 0:00:21.6]} 58. Kf3 {[%clk 0:00:54.8]} 58...
Kf6 {[%clk 0:00:21.9]} 59. Ra6 {[%clk 0:00:54.1]} 59... g5 {[%clk 0:00:21.6]}
60. Ra7 {[%clk 0:00:51.1]} 60... h4 {[%clk 0:00:21.9]} 61. g4 {[%clk 0:00:51.1]}
61... Bb8 {[%clk 0:00:20.1]} 62. Ra6+ {[%clk 0:00:50.3]} 62... Rd6 {[%clk
0:00:20.6]} 63. Ra8 {[%clk 0:00:50.2]} 63... Rd8 {[%clk 0:00:21.6]} 64. Nb4
{[%clk 0:00:45.1]} 64... Ke6 {[%clk 0:00:14.9]} 65. Ra6+ {[%clk 0:00:38.6]}
65... Bd6 {[%clk 0:00:15.2]} 66. Bf5+ {[%clk 0:00:38]} 66... Kf6 {[%clk
0:00:16.2]} 67. Nd5+ {[%clk 0:00:38.8]} 67... Kf7 {[%clk 0:00:17.2]} 68. Ra7+
{[%clk 0:00:38.8]} 68... Kf8 {[%clk 0:00:17.8]} 69. Rh7 {[%clk 0:00:33.9]} 69...
Rb8 {[%clk 0:00:16.8]} 70. Nf6 {[%clk 0:00:33.6]} 70... Rb3+ {[%clk 0:00:17]}
71. Ke4 {[%clk 0:00:34.8]} 71... Be7 {[%clk 0:00:15.6]} 72. Nd5 {[%clk
0:00:30.2]} 72... Bd6 {[%clk 0:00:13.1]} 73. Be6 {[%clk 0:00:31.3]} 73... h3
{[%clk 0:00:09.8]} 74. Nf6 {[%clk 0:00:30.3]} 74... Rb4+ {[%clk 0:00:06.8]} 75.
Kf5 {[%clk 0:00:20.3]} 75... Rf4+ {[%clk 0:00:07.3]} 76. Kg6 {[%clk 0:00:21.7]}
76... Rxf6+ {[%clk 0:00:04.3]} 77. Kxf6 {[%clk 0:00:23.5]} 77... Ke8 {[%clk
0:00:06.2]} 78. Rh8+ {[%clk 0:00:22.1]} 78... Bf8 {[%clk 0:00:07.1]} 79. Rxh3
{[%clk 0:00:22.2]} 79... e4 {[%clk 0:00:07.3]} 80. Re3 {[%clk 0:00:21.9]} 80...
Be7+ {[%clk 0:00:08.3]} 81. Kf5 {[%clk 0:00:23.1]} 81... Bf8 {[%clk 0:00:09.8]}
82. Rxe4 {[%clk 0:00:24.7]} 82... Kd8 {[%clk 0:00:10.5]} 83. Bf7 {[%clk
0:00:25.5]} 83... Bd6 {[%clk 0:00:11.4]} 84. Kxg5 {[%clk 0:00:25.5]} 1-0